bitfinex/quotes_ETHUSD_20250110
["timestamp","ask_amount","ask_price","bid_price","bid_amount"]
[1736467375961,0.04037436,3230.2,3229.5,0.0075]
[1736467376149,0.4894168,3230.2,3229.4,3.09654]
[1736467376363,0.7806,3230.1,3229.2,3.0967]
[1736467376890,0.7806,3230.1,3228.6,3.7529]
[1736467376891,0.03963604,3230.0,3228.9,3.09693]
[1736467377078,0.7806,3229.9,3229.0,0.03096409]
[1736467377247,0.7806,3229.9,3229.2,3.09673]
[1736467377453,0.03955831,3229.8,3229.2,3.09673]
[1736467380069,0.42157414,3229.8,3229.1,3.09683]
[1736467380401,0.42157414,3229.8,3229.2,0.0309641]
[1736467380692,0.42157414,3229.8,3229.3,0.0075]
[1736467380920,0.03955831,3229.8,3229.5,3.09644]
[1736467382030,0.03955831,3229.8,3229.4,0.0075]
[1736467382553,0.03955831,3229.8,3228.6,0.7529]
[1736467382744,0.7784,3229.7,3228.6,3.0973]
[1736467382943,0.7784,3229.5,3228.7,3.09721]
[1736467383465,0.03948056,3229.4,3228.8,3.09711]
[1736467383753,0.03948056,3229.4,3228.4,0.0225]
[1736467383953,0.03948056,3229.4,3228.3,0.0075]
[1736467384110,3.87505,3229.3,3228.3,0.0075]
[1736467384319,0.7784,3229.1,3228.3,0.015]
[1736467384550,0.7784,3229.1,3228.4,0.0075]
[1736467384755,0.03948056,3229.0,3228.3,3.0976]
[1736467385113,0.03948056,3229.0,3228.0,0.015]
[1736467385308,0.7527,3228.7,3227.6,3.97504461]
[1736467385555,0.03896863,3228.6,3228.1,3.0977]
[1736467385761,0.03896863,3228.6,3227.7,0.03097425]
[1736467385762,0.03896863,3228.6,3228.2,0.03097366]
[1736467385972,0.03896863,3228.6,3228.1,3.0977]
[1736467386129,0.03896863,3228.6,3228.2,0.03097366]
[1736467386334,0.03896863,3228.6,3228.1,3.0977]
[1736467386567,0.03896863,3228.6,3228.2,0.03097367]
[1736467386771,0.03896863,3228.6,3228.1,3.0977]
[1736467387729,0.03896863,3228.6,3228.2,0.03097368]
[1736467388675,0.03896863,3228.6,3228.3,0.0075]
[1736467388841,0.03896863,3228.6,3228.5,3.11241]
[1736467389040,0.03896863,3228.6,3228.5,3.70087907]
[1736467389272,0.7772,3229.4,3228.3,0.8111]
[1736467389522,0.7772,3229.4,3228.5,3.09735]
[1736467389684,0.7772,3229.4,3228.0,5.31]
[1736467389685,0.03757512,3229.3,3228.0,6.1176]
[1736467389880,0.03757512,3229.3,3228.8,3.09711]
[1736467390044,0.03757512,3229.3,3229.0,0.0075]
[1736467390385,0.03757512,3229.3,3228.8,0.0075]
[1736467390549,0.03757512,3229.3,3229.0,0.0075]
[1736467390750,0.03757512,3229.3,3229.0,0.03846538]
[1736467390954,0.03757512,3229.3,3229.0,0.0075]
[1736467391769,0.03757512,3229.3,3229.0,0.03096534]
[1736467392072,0.03757512,3229.3,3229.1,3.09681]
[1736467392442,0.8277,3229.7,3229.1,3.09681]
[1736467392650,0.03804187,3229.2,3229.0,0.03096534]
[1736467392987,0.03804187,3229.2,3228.9,3.09699]
[1736467392988,0.8277,3229.7,3228.7,3.09719]
[1736467393309,0.392388,3229.6,3229.0,0.0075]
[1736467393458,0.03804835,3229.6,3229.0,0.0075]
[1736467393650,0.03804835,3229.6,3229.0,0.03846557]
[1736467393830,0.03804835,3229.6,3229.0,0.0075]
[1736467394452,0.03804835,3229.6,3228.7,3.09719]
[1736467394647,0.7509,3229.5,3228.7,3.09719]
[1736467394879,1.12209984,3229.5,3228.6,0.015]
[1736467395051,1.12209984,3229.5,3228.6,3.11223]
[1736467395257,0.03804835,3229.4,3228.6,3.11223]
[1736467395585,0.03804835,3229.4,3228.7,0.03096837]
[1736467396787,0.03804835,3229.4,3228.8,3.09712]
[1736467401990,0.03804835,3229.4,3228.1,0.8231]
[1736467402192,0.8235,3229.2,3228.2,0.0309684]
[1736467402569,0.03840492,3229.1,3228.3,0.0075]
[1736467403004,0.03840492,3229.1,3228.4,3.09742]
[1736467403183,0.7747,3229.0,3228.0,5.31]
[1736467403402,0.7747,3229.0,3228.3,3.09756]
[1736467403713,0.03826231,3228.9,3228.3,3.09756]
[1736467405226,0.7763,3228.8,3227.9,3.09798]
[1736467405375,0.39115923,3228.7,3227.9,3.09798]
[1736467405574,0.03821045,3228.6,3228.0,0.015]
[1736467406224,0.03821045,3228.6,3228.0,3.11289]
[1736467406402,0.03821045,3228.6,3228.1,3.09778]
[1736467406598,0.7763,3228.8,3228.1,3.09778]
[1736467406805,0.03821045,3228.5,3228.1,3.09778]
[1736467407003,0.7763,3228.8,3228.1,3.09778]
[1736467407185,0.03821045,3228.4,3228.0,0.015]
[1736467407387,0.7763,3228.8,3228.2,3.0976]
[1736467407616,0.03821045,3228.3,3228.2,3.0976]
[1736467407916,0.7763,3228.8,3228.2,3.0976]
[1736467408372,0.03821045,3228.7,3228.2,3.0976]
[1736467408571,0.03821045,3228.7,3228.3,0.05347371]
[1736467408770,5.28,3229.6,3228.3,0.05347371]
[1736467408771,0.7967,3229.3,3229.1,3.09682]
[1736467408971,0.03657558,3229.2,3229.1,3.09682]
[1736467409217,0.7967,3229.3,3229.1,3.09682]
[1736467409426,0.7967,3229.3,3228.8,0.0075]
[1736467409579,0.0367637,3229.2,3228.8,3.10454]
[1736467409779,0.7967,3229.3,3228.8,3.10454]
[1736467410017,0.0367637,3229.1,3228.2,0.7512]
[1736467410320,0.03698422,3229.2,3228.4,0.0225]
[1736467410520,0.7967,3229.3,3228.4,0.0225]
[1736467410720,0.03698422,3229.1,3228.4,0.0225]
[1736467410901,0.7967,3229.3,3228.7,3.0972]
[1736467411085,0.03698422,3229.0,3228.7,3.0972]
[1736467411281,0.7967,3229.3,3228.7,3.0972]
[1736467411482,0.0341697,3228.9,3228.7,3.0972]
[1736467411681,0.7967,3229.3,3228.7,3.0972]
[1736467412155,0.03689041,3229.2,3228.7,3.0972]
[1736467412314,0.03689041,3229.2,3228.7,3.12816884]
[1736467412823,0.03689041,3229.2,3228.8,0.0225]
[1736467413008,0.03689041,3229.2,3229.1,3.09683]
[1736467413217,0.7799,3229.6,3229.1,3.09683]
[1736467413632,0.03689041,3229.5,3229.1,3.09683]
[1736467413839,0.03689041,3229.5,3228.8,0.0225]
[1736467414044,0.8235,3229.4,3228.6,3.09724]
[1736467414342,3.09655,3229.4,3228.4,3.09742]
[1736467414515,1.42914904,3229.3,3228.5,3.09739]
[1736467414716,1.46600053,3229.3,3228.5,3.09739]
[1736467415285,1.46600053,3229.3,3228.2,0.0225]
[1736467415489,0.7902,3229.2,3228.0,0.8213]
[1736467415738,0.7902,3228.9,3228.0,3.09785]
[1736467415929,0.37902,3228.8,3227.9,0.0225]
[1736467416134,0.41587149,3228.8,3228.1,3.09775]
[1736467416314,0.41587149,3228.8,3227.9,0.03097376]
[1736467416507,0.03685149,3228.8,3228.1,3.0977]
[1736467417144,0.03685149,3228.8,3228.0,0.0075]
[1736467417314,0.03685149,3228.8,3228.2,3.09762]
[1736467418409,0.03685149,3228.8,3228.6,3.09731]
[1736467419806,0.03685149,3228.8,3228.7,3.10472]
[1736467420014,0.03685149,3228.8,3228.7,3.11972]
[1736467420330,0.7938,3229.6,3228.8,3.09712]
[1736467420633,0.7938,3229.4,3228.5,3.09736]
[1736467420843,0.7938,3229.4,3228.6,3.09728]
[1736467421133,0.7938,3229.4,3228.7,3.09721]
[1736467421331,0.41578391,3229.3,3228.5,3.1283807]
[1736467421538,0.41578391,3229.3,3229.0,3.09692]
[1736467421539,0.03640391,3229.3,3229.0,3.09692]
[1736467422347,0.03640391,3229.3,3229.2,3.65424]
[1736467422695,0.7789,3229.8,3229.4,3.09654]
[1736467423210,0.03685799,3229.7,3229.4,3.09654]
[1736467423618,0.03685799,3229.7,3229.3,3.09655]
[1736467425107,0.03685799,3229.7,3228.9,3.09702]
[1736467426622,0.03685799,3229.7,3228.8,0.0075]
[1736467426824,0.7509,3229.6,3228.7,3.09719]
[1736467427030,0.7509,3229.4,3228.3,0.7673]
[1736467427255,0.7509,3229.4,3228.6,3.09727]
[1736467427421,1.12968099,3229.4,3228.6,3.09727]
[1736467427620,0.03690988,3229.3,3228.6,3.09727]
[1736467427916,0.03690988,3229.3,3228.4,0.03096784]
[1736467427917,0.03690988,3229.3,3228.5,0.0075]
[1736467428231,0.03690988,3229.3,3228.7,3.0972]
[1736467429234,0.03690988,3229.3,3228.5,0.0075]
[1736467429643,2.92305,3229.2,3228.2,3.09765]
[1736467429962,2.92305,3229.2,3227.9,0.7834]
[1736467429963,3.85153,3228.7,3227.3,0.7834]
[1736467430154,6.77468,3228.6,3227.6,6.31847461]
[1736467430359,6.77468,3228.6,3226.8,3.09897]
[1736467430360,0.7543,3228.2,3227.4,3.09844]
[1736467430953,0.03662447,3228.1,3227.4,3.09844]
[1736467431528,0.03662447,3228.1,3227.5,3.09834]
[1736467431857,0.03662447,3228.1,3228.0,3.10539]
[1736467432363,0.8233,3228.5,3228.0,3.10539]
[1736467432567,0.8233,3228.5,3228.1,3.09779]
[1736467432721,0.0362092,3228.4,3228.1,3.09779]
[1736467433434,0.0362092,3228.4,3228.0,0.0075]
[1736467433641,0.0362092,3228.4,3227.9,3.09797]
[1736467433873,0.7723,3228.3,3227.4,3.09846]
[1736467434026,1.16289992,3228.3,3227.4,3.09846]
[1736467434227,0.03563827,3228.2,3227.5,3.09835]
[1736467434868,0.03563827,3228.2,3227.3,0.04598047]
[1736467435181,0.03563827,3228.2,3227.6,3.09818]
[1736467435776,0.03563827,3228.2,3227.4,0.0075]
[1736467435935,0.03563827,3228.2,3227.5,0.03098064]
[1736467436267,0.03563827,3228.2,3227.6,3.09822]
[1736467437371,0.03563827,3228.2,3227.6,3.09821]
[1736467437974,0.03563827,3228.2,3227.7,3.09818]
[1736467438707,0.03563827,3228.2,3227.5,3.09835]
[1736467439051,0.03563827,3228.2,3227.7,0.0225]
[1736467439450,0.03563827,3228.2,3228.1,3.66279]
[1736467439693,0.03563827,3228.2,3228.1,4.43479]
[1736467440002,0.8315,3229.2,3228.7,3.09715]
[1736467440318,0.8315,3229.2,3228.3,3.09751]
[1736467440319,3.0,3229.2,3228.3,3.09751]
[1736467440593,3.8315,3229.0,3228.1,3.09772]
[1736467441098,3.7651,3228.8,3227.9,3.09795]
[1736467441298,0.7651,3228.8,3228.0,3.09788]
[1736467441692,0.03583943,3228.7,3228.0,3.09788]
[1736467441884,0.03583943,3228.7,3227.8,3.09806]
[1736467442081,0.7803,3228.6,3227.5,3.09829]
[1736467442255,0.7803,3228.5,3227.5,3.09829]
[1736467442456,0.7803,3228.3,3227.5,3.09829]
[1736467442657,0.7803,3228.3,3227.7,3.09817]
[1736467443087,0.03581348,3228.2,3227.5,3.09835]
[1736467443300,0.03581348,3228.2,3227.6,3.09824]
[1736467443463,0.03581348,3228.2,3227.2,3.09864]
[1736467443659,0.7803,3228.1,3227.3,3.09847]
[1736467443861,0.7803,3228.1,3227.1,3.09871]
[1736467444230,3.0,3227.9,3226.4,0.7757]
[1736467444506,3.7803,3227.5,3226.4,3.09941]
[1736467444735,6.09839,3227.5,3226.4,3.09941]
[1736467444880,0.7803,3227.3,3226.4,3.09941]
[1736467445391,3.7803,3227.3,3226.4,3.09941]
[1736467445592,0.03477489,3227.2,3226.1,0.7757]
[1736467445906,0.7803,3227.0,3226.2,3.09954]
[1736467446060,0.7803,3227.0,3226.0,0.0075]
[1736467446261,0.0347684,3226.9,3225.6,0.7757]
[1736467446576,0.0347684,3226.9,3225.7,0.03099362]
[1736467446770,3.0,3226.7,3225.7,0.03099362]
[1736467446969,0.7803,3226.3,3224.9,3.87647]
[1736467447169,6.0603,3226.3,3225.2,3.10054]
[1736467447386,0.95059302,3226.2,3225.0,3.0075]
[1736467447592,0.95059302,3226.2,3225.0,3.03850219]
[1736467448401,0.95059302,3226.2,3225.4,3.10038]
[1736467448595,0.03461902,3226.2,3225.5,0.0385022]
[1736467448814,0.03461902,3226.2,3225.5,0.565]
[1736467449213,0.03461902,3226.2,3225.9,3.0999]
[1736467449710,6.0603,3226.3,3225.9,3.0999]
[1736467449894,0.03402779,3226.1,3225.9,3.0999]
[1736467450097,6.0603,3226.3,3225.7,0.015]
[1736467450429,0.7896,3226.8,3226.5,3.09928]
[1736467450809,3.54775201,3227.7,3226.0,0.5725]
[1736467450810,0.7896,3227.3,3226.0,0.5725]
[1736467451006,3.7896,3227.3,3226.7,3.09912]
[1736467451328,3.7896,3227.3,3226.8,3.09902]
[1736467451889,0.7896,3227.3,3227.0,3.09883]
[1736467453374,0.7896,3227.3,3226.8,3.09903]
[1736467453779,0.03248465,3227.2,3226.8,3.09903]
[1736467453974,0.7896,3227.3,3226.8,3.09903]
[1736467454321,0.03248465,3227.2,3226.8,3.09903]
[1736467454775,0.7896,3227.3,3226.8,3.09903]
[1736467455175,0.03248465,3227.2,3226.8,3.09903]
[1736467455511,0.7896,3227.3,3226.8,3.09903]
[1736467455715,0.03248465,3227.1,3226.8,3.09903]
[1736467455893,0.7896,3227.3,3226.8,3.09903]
[1736467456099,0.03248465,3227.0,3226.8,3.09903]
[1736467456395,0.03248465,3226.9,3226.8,3.09903]
[1736467456615,0.7896,3227.3,3226.9,3.09893]
[1736467456817,0.03248465,3227.2,3226.9,3.09893]
[1736467457135,0.7896,3227.3,3226.9,3.09893]
[1736467457400,0.03248465,3227.1,3227.0,3.10635]
[1736467457598,0.8284,3227.6,3227.1,3.10625]
[1736467457896,0.03252364,3227.5,3227.3,3.09852]
[1736467458402,0.03252364,3227.5,3227.1,3.10622]
[1736467458697,0.03252364,3227.5,3227.2,0.03098379]
[1736467458889,0.03252364,3227.5,3227.4,3.09846]
[1736467459272,0.7774,3227.9,3227.4,3.09846]
[1736467459467,0.03269256,3227.5,3227.4,3.09846]
[1736467459664,0.7774,3227.9,3227.4,3.09846]
[1736467459869,0.03269256,3227.5,3227.4,3.09846]
[1736467460077,0.7774,3227.9,3227.4,3.09846]
[1736467460282,0.03269256,3227.5,3227.4,3.09846]
[1736467460478,0.7774,3227.9,3227.6,3.09826]
[1736467460682,0.7774,3227.9,3227.7,3.09818]
[1736467460880,0.7774,3227.9,3227.3,0.0075]
[1736467460881,0.7774,3227.9,3227.3,0.86478201]
[1736467461456,0.7774,3227.9,3227.6,3.09819]
[1736467462390,0.7662,3228.3,3227.6,3.09819]
[1736467462967,0.7633,3228.2,3227.3,3.09856]
[1736467463174,0.386092,3228.1,3227.3,3.09856]
[1736467463876,0.7633,3228.0,3227.3,3.09856]
[1736467464073,0.7633,3227.9,3226.8,5.31]
[1736467464273,0.7633,3227.7,3226.9,0.255]
[1736467464673,0.7633,3227.7,3226.9,3.35393]
[1736467465876,0.7633,3227.7,3227.0,3.09882]
[1736467466591,0.7633,3227.7,3226.8,3.09901]
[1736467466778,0.37633,3227.6,3226.8,3.09901]
[1736467466973,0.7793,3227.5,3226.8,3.09901]
[1736467467201,0.7793,3227.5,3226.7,0.255]
[1736467467379,0.7793,3227.5,3227.0,3.09877]
[1736467468610,0.7793,3227.5,3226.8,3.099]
[1736467468781,0.44930824,3227.4,3226.7,0.255]
[1736467468984,0.03374524,3227.4,3227.3,3.09856]
[1736467469277,5.28,3227.7,3227.4,3.09842]
[1736467469492,0.8044,3227.9,3227.3,0.0075]
[1736467469493,0.03374524,3227.4,3227.3,3.68699178]
[1736467469677,0.8304,3228.2,3227.7,3.09811]
[1736467470097,0.03374524,3228.1,3227.7,3.09811]
[1736467470604,0.03374524,3228.1,3227.4,3.10587]
[1736467471005,0.03374524,3228.1,3227.5,3.09834]
[1736467471612,0.03374524,3228.1,3227.4,0.0075]
[1736467471812,0.03374524,3228.1,3227.5,0.8179]
[1736467471969,0.03374524,3228.1,3227.7,3.09817]
[1736467473104,0.03374524,3228.1,3227.6,0.255]
[1736467473813,0.03374524,3228.1,3227.6,3.35326]
[1736467474384,0.03374524,3228.1,3227.7,3.09817]
[1736467475206,0.03374524,3228.1,3227.6,0.255]
[1736467475710,0.03374524,3228.1,3227.6,3.35326]
[1736467475913,0.03374524,3228.1,3227.6,3.09826]
[1736467476148,0.03374524,3228.1,3227.4,0.2625]
[1736467476149,0.03374524,3228.1,3227.7,0.03098067]
[1736467476350,0.03374524,3228.1,3228.0,3.09789]
[1736467476655,0.771,3228.6,3227.9,0.03097611]
[1736467476808,0.03408298,3228.1,3227.8,0.832]
[1736467477153,0.771,3228.6,3227.9,3.09794]
[1736467477341,0.771,3228.6,3227.7,3.09815]
[1736467477520,0.03408298,3228.5,3227.7,3.09815]
[1736467477724,0.41459128,3228.5,3227.7,3.09815]
[1736467479053,0.7513,3228.4,3227.5,3.35332]
[1736467479270,0.8197,3228.3,3227.5,3.09832]
[1736467479412,6.13399079,3228.3,3227.4,0.255]
[1736467479611,0.391723,3228.2,3227.4,0.255]
[1736467480045,0.03429079,3228.1,3227.4,3.35344]
[1736467480743,0.829,3228.0,3227.2,3.35363]
[1736467481156,0.03418689,3227.9,3227.2,3.35363]
[1736467481311,0.03418689,3227.9,3227.2,0.255]
[1736467481518,0.829,3227.8,3227.0,3.35383]
[1736467481715,1.22511869,3227.8,3227.0,3.35383]
[1736467481919,0.03407649,3227.7,3227.0,3.35383]
[1736467483260,0.03407649,3227.7,3227.0,3.35183]
[1736467483551,0.03407649,3227.7,3227.1,0.03848646]
[1736467483765,0.03407649,3227.7,3227.3,3.09855]
[1736467484127,0.829,3227.8,3227.3,3.09855]
[1736467484638,0.03361532,3227.7,3227.3,3.09855]
[1736467485020,0.829,3227.8,3227.3,3.09855]
[1736467485365,0.03361532,3227.7,3227.3,3.09855]
[1736467485754,0.829,3227.8,3227.1,3.35922]
[1736467485954,0.03361532,3227.6,3227.2,3.09863]
[1736467486148,0.829,3227.8,3227.2,3.09863]
[1736467486340,0.03361532,3227.5,3227.2,3.09863]
[1736467486541,0.829,3227.8,3227.2,3.09863]
[1736467486767,0.03361532,3227.4,3227.2,3.09863]
[1736467487131,0.03361532,3227.4,3227.3,3.09856]
[1736467487468,0.829,3227.8,3227.4,3.09843]
[1736467487850,0.03361532,3227.7,3227.4,3.09843]
[1736467488038,0.829,3227.8,3227.4,3.09843]
[1736467488239,0.03361532,3227.7,3227.4,3.09843]
[1736467488420,0.829,3227.8,3227.1,0.253]
[1736467488625,0.03375822,3227.7,3227.1,0.253]
[1736467489842,5.70983304,3227.7,3226.9,0.253]
[1736467490064,5.70983304,3227.7,3227.0,3.09875]
[1736467491076,5.70983304,3227.7,3226.9,0.253]
[1736467491370,5.31375822,3227.7,3227.0,3.09885]
[1736467491666,5.31375822,3227.7,3227.1,0.03098597]
[1736467491838,0.03375822,3227.7,3227.4,3.09844]
[1736467492175,0.7879,3228.3,3228.0,3.09785]
[1736467493427,0.7879,3228.3,3227.8,3.35099]
[1736467493764,0.7879,3228.3,3227.8,0.253]
[1736467494683,0.7879,3228.3,3227.8,3.35105]
[1736467495230,0.7879,3228.3,3227.8,0.253]
[1736467498889,0.0344986,3228.2,3227.8,0.253]
[1736467499088,0.7879,3228.3,3227.8,0.253]
[1736467499283,0.0344921,3228.1,3227.8,0.253]
[1736467499491,0.7879,3228.3,3227.8,0.253]
[1736467499691,0.03447912,3228.0,3227.5,0.253]
[1736467499845,0.7575,3227.9,3227.5,0.253]
[1736467500050,0.03447912,3227.8,3227.5,0.253]
[1736467500282,0.03447912,3227.8,3227.1,3.09871]
[1736467500481,0.03447912,3227.8,3227.1,0.253]
[1736467500896,0.8171,3227.7,3227.1,0.253]
[1736467501054,0.85136481,3227.7,3227.1,0.253]
[1736467501251,0.85136481,3227.7,3226.8,3.099]
[1736467501454,0.7843,3227.5,3226.8,3.352]
[1736467501786,0.0341414,3227.4,3226.8,3.352]
[1736467501993,0.0341414,3227.4,3226.9,3.09894]
[1736467503064,0.0341414,3227.4,3227.3,3.09856]
[1736467503275,5.28,3228.0,3227.3,3.09856]
[1736467503578,5.28,3228.0,3227.4,0.03098314]
[1736467503782,0.7751,3228.1,3228.0,3.09789]
[1736467503985,0.8231,3228.6,3228.2,3.09768]
[1736467504300,6.0329,3228.9,3228.2,3.09768]
[1736467504483,6.0329,3228.9,3228.2,3.09763]
[1736467505096,6.63619,3228.9,3228.2,3.09763]
[1736467505649,0.7529,3228.9,3228.3,3.09752]
[1736467506627,1.17461938,3228.9,3228.0,3.09782]
[1736467506828,1.17461938,3228.9,3227.9,0.253]
[1736467506829,3.7638,3228.7,3227.9,0.253]
[1736467507178,0.7638,3228.7,3228.0,0.0225]
[1736467507387,0.7638,3228.7,3228.0,0.05347402]
[1736467508003,0.7638,3228.7,3228.2,0.0075]
[1736467508209,0.7638,3228.7,3228.2,3.09765]
[1736467508907,0.7638,3228.7,3227.9,0.253]
[1736467509270,0.37638,3228.6,3227.9,0.253]
[1736467509479,3.37638,3228.6,3227.9,0.253]
[1736467509890,0.37638,3228.6,3227.9,0.253]
[1736467510089,6.0438,3228.7,3227.9,0.28397998]
[1736467510589,6.0438,3228.7,3228.1,3.09779]
[1736467510988,6.0438,3228.7,3228.0,0.0075]
[1736467511309,6.0438,3228.7,3228.0,3.10536]
[1736467511812,6.0438,3228.7,3228.1,3.09779]
[1736467512423,6.0438,3228.7,3228.0,0.0075]
[1736467512616,6.0438,3228.7,3228.0,3.10533]
[1736467513115,5.28,3228.7,3228.1,3.87417]
[1736467513421,5.28,3228.7,3228.1,3.09777]
[1736467513746,0.035031,3228.6,3228.1,3.09777]
[1736467513901,0.8079,3228.5,3227.5,3.91246]
[1736467514101,0.8079,3228.5,3227.7,3.09814]
[1736467514508,0.035031,3228.4,3227.8,0.2625]
[1736467514937,0.035031,3228.4,3228.0,3.09789]
[1736467516243,0.035031,3228.4,3228.3,3.0976]
[1736467516474,0.035031,3228.4,3228.2,0.7806]
[1736467516610,5.28,3228.7,3228.2,0.7806]
[1736467516814,5.28,3228.7,3227.9,0.0075]
[1736467516815,0.03497906,3228.3,3227.9,3.12044]
[1736467517038,5.88443,3228.7,3227.9,3.12044]
[1736467517223,5.88443,3228.7,3227.9,0.0225]
[1736467517466,0.03503749,3228.6,3228.1,3.09778]
[1736467517816,0.03503749,3228.6,3228.0,0.0075]
[1736467518029,0.03503749,3228.6,3228.2,3.09768]
[1736467518343,0.03503749,3228.6,3228.0,3.10537]
[1736467519045,0.03503749,3228.6,3228.0,3.09787]
[1736467519346,0.8236,3228.5,3227.8,3.35308]
[1736467519536,0.85863746,3228.5,3227.8,3.35308]
[1736467520147,0.85863746,3228.5,3227.9,3.09797]
[1736467521625,0.85863746,3228.5,3228.0,3.09787]
[1736467521826,0.03503746,3228.5,3228.1,0.03847728]
[1736467522038,0.03503746,3228.5,3228.3,3.90571]
[1736467522353,0.03495956,3228.4,3228.3,3.90571]
[1736467522649,0.7635,3229.1,3228.5,3.09738]
[1736467522846,0.7635,3229.1,3228.3,0.8082]
[1736467522847,0.783,3229.4,3228.4,0.03847174]
[1736467523147,0.783,3229.7,3229.0,3.09688]
[1736467523357,0.03495956,3229.3,3229.0,0.255]
[1736467523651,0.6063,3229.6,3229.0,0.255]
[1736467523809,0.03495956,3229.2,3229.0,0.255]
[1736467524146,0.03495956,3229.1,3229.0,0.255]
[1736467524350,0.6063,3229.6,3229.0,0.255]
[1736467524548,0.6063,3229.6,3228.7,3.0972]
[1736467524549,0.03495956,3229.1,3228.7,3.0972]
[1736467524758,0.8284,3229.1,3228.5,0.255]
[1736467524954,0.03495956,3229.0,3228.5,0.255]
[1736467527150,0.03495956,3229.0,3228.3,0.255]
[1736467527151,0.8303,3228.9,3228.3,0.255]
[1736467527353,8.37711,3228.9,3227.8,3.09805]
[1736467527556,7.73283337,3228.8,3228.1,0.255]
[1736467527757,0.8303,3228.7,3228.1,0.255]
[1736467528656,0.03495956,3228.6,3228.1,0.255]
[1736467531936,0.03495956,3228.6,3228.2,0.7659]
[1736467532129,5.28,3228.9,3228.3,0.03847442]
[1736467532352,0.03488816,3228.5,3228.4,3.0975]
[1736467532632,3.0,3229.2,3228.4,3.0975]
[1736467533036,0.03488816,3229.1,3228.6,3.0973]
[1736467533837,0.8217,3229.3,3228.6,3.0973]
[1736467534042,0.03488816,3229.0,3228.6,3.0973]
[1736467534236,0.8217,3229.3,3228.6,3.0973]
[1736467534465,0.03488816,3228.9,3228.6,3.0973]
[1736467534656,0.8217,3229.3,3228.6,3.0973]
[1736467534842,0.03488816,3228.8,3228.6,3.0973]
[1736467535040,0.8217,3229.3,3227.9,3.0]
[1736467535221,0.03488816,3228.7,3228.3,3.35259]
[1736467535419,3.8217,3229.3,3228.3,3.35259]
[1736467535660,0.03488816,3228.6,3228.3,3.35259]
[1736467535859,3.8217,3229.3,3228.3,3.35259]
[1736467536043,3.8217,3229.3,3228.3,0.255]
[1736467536263,3.87865,3229.1,3228.3,0.255]
[1736467536623,3.87865,3229.1,3228.2,0.255]
[1736467536959,0.03488816,3229.0,3228.2,0.255]
[1736467537160,3.03488816,3229.0,3228.2,0.255]
[1736467539451,8.31488816,3229.0,3228.2,0.255]
[1736467539762,1.51190186,3228.9,3228.2,0.255]
[1736467539923,8.31488816,3229.0,3228.2,0.255]
[1736467540128,5.28,3229.0,3228.2,0.255]
[1736467540328,0.03488816,3228.9,3228.2,0.255]
[1736467541078,0.03488816,3228.9,3228.3,3.09756]
[1736467541827,0.03488816,3228.9,3228.5,0.0075]
[1736467542789,0.03488816,3228.9,3228.5,0.015]
[1736467543075,0.7731,3229.8,3229.3,3.09663]
[1736467543589,0.03488816,3229.7,3229.3,3.09663]
[1736467543933,0.03488816,3229.7,3229.1,3.3488]
[1736467544169,0.03488816,3229.7,3229.1,0.252]
[1736467545631,0.03488816,3229.7,3229.3,3.09664]
[1736467551453,0.03488816,3229.7,3229.4,3.0965]
[1736467551633,0.03488816,3229.7,3229.2,3.10423]
[1736467552470,0.03488816,3229.7,3228.8,0.7615]
[1736467552676,0.03488816,3229.7,3229.1,0.252]
[1736467552985,3.7654,3229.6,3228.6,8.40729]
[1736467553182,3.0,3229.4,3228.7,0.252]
[1736467553393,0.3,3229.3,3228.7,0.252]
[1736467553732,0.03631593,3229.2,3228.5,3.85449]
[1736467553991,0.03631593,3229.2,3228.5,4.10649]
[1736467554493,0.8323,3229.1,3228.5,0.252]
[1736467554980,0.03631593,3229.0,3228.5,3.3494]
[1736467557350,0.03631593,3229.0,3228.5,0.252]
[1736467557758,0.38686159,3228.9,3228.5,0.252]
[1736467558101,0.03603693,3228.9,3228.8,3.09712]
[1736467558451,5.28,3229.2,3228.8,3.09712]
[1736467558652,0.03603693,3228.9,3228.8,3.09712]
[1736467558865,5.28,3229.2,3228.5,0.252]
[1736467559064,0.03603693,3228.9,3228.5,3.3494]
[1736467559259,5.28,3229.2,3228.6,3.09723]
[1736467559496,0.03603693,3228.8,3228.7,3.09722]
[1736467559660,5.28,3229.2,3228.7,3.09722]
[1736467559858,0.03603693,3228.8,3228.7,3.09722]
[1736467560056,5.28,3229.2,3228.5,3.34938]
[1736467560264,0.03603693,3228.8,3228.5,3.34938]
[1736467560500,5.28,3229.2,3228.5,0.252]
[1736467560699,0.03603693,3228.7,3228.6,3.09727]
[1736467560841,5.28,3229.2,3228.6,3.09727]
[1736467561046,0.03603693,3228.7,3228.6,3.09727]
[1736467561291,3.0,3229.1,3228.6,3.09727]
[1736467561502,0.03603693,3228.7,3228.5,0.252]
[1736467561648,0.03603693,3228.7,3228.2,0.252]
[1736467561848,0.7772,3228.8,3228.0,3.88691]
[1736467562163,0.7772,3228.8,3228.1,0.252]
[1736467562358,0.03569952,3228.7,3228.1,0.252]
[1736467562901,0.03569952,3228.7,3228.3,3.09753]
[1736467563196,0.03556323,3228.6,3228.3,3.09753]
[1736467563405,0.7772,3228.9,3228.1,3.34979]
[1736467563564,0.03556323,3228.5,3228.1,3.38076496]
[1736467563906,0.7772,3228.9,3228.1,0.28297496]
[1736467564066,0.03556323,3228.4,3228.1,0.28297496]
[1736467564271,0.7772,3228.9,3228.1,0.28297429]
[1736467564620,3.0,3229.1,3228.1,3.38070429]
[1736467564898,0.03556323,3228.8,3228.5,3.0974]
[1736467565104,3.0,3229.1,3228.5,3.0974]
[1736467565271,0.03556323,3228.7,3228.6,3.12828199]
[1736467565450,3.0,3229.1,3228.8,3.0971]